fUST/lending_fUST_20260630
["ID","MTS","AMOUNT","RATE_DAILY","PERIOD"]
[426711403,1782756639000,-500.0,0.00029109,2]
[426711400,1782756639000,-500.0,0.00029109,2]
[426711394,1782756639000,-500.0,0.00029109,2]
[426711405,1782756639000,-500.0,0.00029109,2]
[426711401,1782756639000,-500.0,0.00029109,2]
[426711402,1782756639000,-500.0,0.00029109,2]
[426711404,1782756639000,-500.0,0.00029109,2]
[426711406,1782756639000,-500.0,0.00029109,2]
[426711407,1782756639000,-500.0,0.00029109,2]
[426711459,1782756639000,-500.0,0.00029315,7]
[426711471,1782756639000,-500.0,0.00029315,7]
[426711461,1782756639000,-500.0,0.00029315,7]
[426711542,1782756639000,-500.0,0.00029315,7]
[426711544,1782756639000,-500.0,0.00029315,7]
[426711546,1782756639000,-500.0,0.00029315,7]
[426711549,1782756639000,-173.91,0.00029315,7]
[426711547,1782756639000,-500.0,0.00029315,7]
[426711551,1782756639000,-500.0,0.00029315,7]
[426711553,1782756639000,-500.0,0.00029315,7]
[426711555,1782756639000,-500.0,0.00029315,7]
[426711559,1782756639000,-500.0,0.00029315,7]
[426711557,1782756639000,-500.0,0.00029315,7]
[426711561,1782756639000,-500.0,0.00029315,7]
[426711567,1782756639000,-500.0,0.00029315,7]
[426711571,1782756639000,-500.0,0.00029315,7]
[426711535,1782756639000,-156.37808335,0.00029315,7]
[426711565,1782756639000,-500.0,0.00029315,7]
[426711577,1782756639000,-500.0,0.00029315,7]
[426711569,1782756639000,-500.0,0.00029315,7]
[426711573,1782756639000,-500.0,0.00029315,7]
[426711575,1782756639000,-500.0,0.00029315,7]
[426711584,1782756639000,-500.0,0.00029315,7]
[426711588,1782756639000,-500.0,0.00029315,7]
[426711579,1782756639000,-500.0,0.00029315,7]
[426711581,1782756639000,-500.0,0.00029315,7]
[426711586,1782756639000,-500.0,0.00029315,7]
[426711590,1782756639000,-500.0,0.00029315,7]
[426711595,1782756639000,-500.0,0.00029315,7]
[426711593,1782756639000,-500.0,0.00029315,7]
[426711592,1782756639000,-500.0,0.00029315,7]
[426711563,1782756639000,-500.0,0.00029315,7]
[426711530,1782756639000,-500.0,0.00029315,7]
[426711457,1782756639000,-500.0,0.00029315,7]
[426711534,1782756639000,-220.38,0.00029315,7]
[426711528,1782756639000,-500.0,0.00029315,7]
[426711475,1782756639000,-579.80517617,0.00029315,7]
[426711477,1782756639000,-500.0,0.00029315,7]
[426711481,1782756639000,-375.63503495,0.00029315,7]
[426711479,1782756639000,-500.0,0.00029315,7]
[426711487,1782756639000,-500.0,0.00029315,7]
[426711483,1782756639000,-500.0,0.00029315,7]
[426711485,1782756639000,-500.0,0.00029315,7]
[426711489,1782756639000,-500.0,0.00029315,7]
[426711495,1782756639000,-393.92,0.00029315,7]
[426711493,1782756639000,-500.0,0.00029315,7]
[426711499,1782756639000,-500.0,0.00029315,7]
[426711497,1782756639000,-500.0,0.00029315,7]
[426711501,1782756639000,-500.0,0.00029315,7]
[426711491,1782756639000,-500.0,0.00029315,7]
[426711508,1782756639000,-500.0,0.00029315,7]
[426711540,1782756639000,-384.93,0.00029315,7]
[426711504,1782756639000,-500.0,0.00029315,7]
[426711537,1782756639000,-500.0,0.00029315,7]
[426711532,1782756639000,-344.83,0.00029315,7]
[426711524,1782756639000,-498.000999,0.00029315,7]
[426711516,1782756639000,-500.0,0.00029315,7]
[426711526,1782756639000,-500.0,0.00029315,7]
[426711519,1782756639000,-500.0,0.00029315,7]
[426711522,1782756639000,-500.0,0.00029315,7]
[426711503,1782756639000,-500.0,0.00029315,7]
[426711506,1782756639000,-500.0,0.00029315,7]
[426711513,1782756639000,-500.0,0.00029315,7]
[426711518,1782756639000,-434.8,0.00029315,7]
[426711641,1782756640000,-4244.28,0.00029336,7]
[426711651,1782756640000,-500.0,0.00029407,7]
[426711647,1782756640000,-500.0,0.00029345,7]
[426711649,1782756640000,-500.0,0.00029407,7]
[426711645,1782756640000,-500.0,0.00029343,7]
[426711654,1782756640000,-200.0,0.00029408,13]
[426711653,1782756640000,-500.0,0.00029407,7]
[426711652,1782756640000,-500.0,0.00029407,7]
[426711655,1782756640000,-862.260712,0.00029476,2]
[426711673,1782756640000,-1000.0,0.000297,2]
[426711666,1782756640000,-151.0,0.000296,19]
[426711672,1782756640000,-1000.0,0.000297,2]
[426711670,1782756640000,-1000.0,0.000297,2]
[426711658,1782756640000,-1000.0,0.0002958,2]
[426711660,1782756640000,-1000.0,0.0002958,2]
[426711664,1782756640000,-1000.0,0.0002959,2]
[426711639,1782756640000,-12828.658135,0.00029335,2]
[426711668,1782756640000,-1000.0,0.000297,2]
[426711643,1782756640000,-1032.87666007,0.00029336,2]
[426711615,1782756640000,-376.82895068,0.00029335,2]
[426711635,1782756640000,-314.293984,0.00029335,10]
[426711599,1782756640000,-500.0,0.00029335,7]
[426711597,1782756640000,-587.15573855,0.00029315,7]
[426711601,1782756640000,-500.0,0.00029335,7]
[426711603,1782756640000,-1000.0,0.00029335,3]
[426711605,1782756640000,-500.0,0.00029335,7]
[426711607,1782756640000,-500.0,0.00029335,7]
[426711662,1782756640000,-1000.0,0.0002959,2]
[426711619,1782756640000,-3460.0,0.00029335,2]
[426711617,1782756640000,-3460.0,0.00029335,2]
[426711609,1782756640000,-500.0,0.00029335,7]
[426711613,1782756640000,-500.0,0.00029335,7]
[426711611,1782756640000,-500.0,0.00029335,7]
[426711621,1782756640000,-3460.0,0.00029335,2]
[426711622,1782756640000,-3460.0,0.00029335,2]
[426711625,1782756640000,-3460.0,0.00029335,2]
[426711629,1782756640000,-3460.0,0.00029335,2]
[426711627,1782756640000,-3460.0,0.00029335,2]
[426711631,1782756640000,-3460.0,0.00029335,2]
[426711633,1782756640000,-284.00902456,0.00029335,2]
[426711637,1782756640000,-163.7908664,0.00029335,2]
[426711675,1782756640000,-151.0,0.000297,16]
[426711684,1782756640000,-1000.0,0.00029746,2]
[426711682,1782756640000,-1000.0,0.00029746,2]
[426711727,1782756640000,-346.80198997,0.0002999,2]
[426711729,1782756640000,-306.52,0.00029998,7]
[426711731,1782756640000,-261.77678724,0.00029998,2]
[426711733,1782756640000,-500.0,0.00029999,7]
[426711735,1782756640000,-500.0,0.00029999,7]
[426711677,1782756640000,-151.0,0.000297,18]
[426711739,1782756640000,-500.0,0.00029999,7]
[426711742,1782756640000,-500.0,0.00029999,7]
[426711725,1782756640000,-203.5137849,0.0002999,2]
[426711744,1782756640000,-500.0,0.00029999,7]
[426711748,1782756640000,-500.0,0.00029999,7]
[426711750,1782756640000,-500.0,0.00029999,7]
[426711752,1782756640000,-542.61,0.00029999,7]
[426711754,1782756640000,-66757.06018889,0.0003,2]
[426711756,1782756640000,-668.5001,0.0003,2]
[426711760,1782756640000,-13293.91166365,0.0003,2]
[426711758,1782756640000,-616.2624,0.0003,2]
[426711763,1782756640000,-68696.04391607,0.0003,2]
[426711746,1782756640000,-500.0,0.00029999,7]
[426711724,1782756640000,-222.17544903,0.0002999,2]
[426711737,1782756640000,-630.89,0.00029999,7]
[426711719,1782756640000,-513.94,0.0002999,3]
[426711680,1782756640000,-1000.0,0.00029746,2]
[426711688,1782756640000,-151.0,0.000298,12]
[426711690,1782756640000,-500.0,0.00029815,7]
[426711696,1782756640000,-151.0,0.000299,2]
[426711697,1782756640000,-354.004998,0.000299,2]
[426711692,1782756640000,-151.0,0.000299,13]
[426711693,1782756640000,-151.0,0.000299,18]
[426711699,1782756640000,-514.1955335,0.000299,2]
[426711701,1782756640000,-159.988674,0.000299,2]
[426711686,1782756640000,-1000.0,0.00029746,2]
[426711708,1782756640000,-151.0,0.000299,2]
[426711706,1782756640000,-151.0,0.000299,2]
[426711712,1782756640000,-151.0,0.000299,2]
[426711717,1782756640000,-151.0,0.000299,2]
[426711714,1782756640000,-151.0,0.000299,2]
[426711722,1782756640000,-194.4035179,0.0002999,2]
[426711710,1782756640000,-327.7860684,0.000299,2]
[426711703,1782756640000,-403.9049363,0.000299,2]
[426711705,1782756640000,-459.2422982,0.000299,2]
[426711716,1782756640000,-327.7860684,0.000299,2]
[426712005,1782756644000,-12136.81822425,0.0003,2]
[426712470,1782756685000,36073.25701645,0.00029114,120]
[426712471,1782756819000,433.45811007,0.000104,2]
[426712623,1782757832000,-744.99759845,0.00025936,2]
[426712624,1782757832000,-153.84813158,0.00026198,2]
[426712628,1782757832000,-965.09418371,0.00029322,2]
[426712626,1782757832000,-163.66267343,0.00029,25]
[426712625,1782757832000,-180.42472335,0.00026463,2]
[426712627,1782757832000,-219.05906251,0.00029315,7]
[426712761,1782757841000,-95.41224449,0.00029321,2]
[426712759,1782757841000,-500.0,0.00029321,2]
[426713305,1782757847000,-3202.59115992,0.00029322,2]
[426713303,1782757847000,-404.58775551,0.00029321,2]
[426713304,1782757847000,-211.92225558,0.00029321,2]
[426713324,1782757906000,181.82565223,0.00030107,30]
[426713329,1782758019000,920.57214675,0.000107,2]
[426713337,1782758274000,32615.93,0.00030136,120]
[426716761,1782759038000,-1060.07988777,0.00029222,2]
[426716760,1782759038000,-616.51001109,0.00029221,2]
[426716759,1782759038000,-176.747651,0.00028548,2]
[426716758,1782759038000,-160.779083,0.00028295,2]
[426716767,1782759041000,-1647.91532255,0.00029222,2]
[426716766,1782759041000,-1269.66449724,0.00029222,2]
[426716765,1782759041000,-4900.57718089,0.00029222,2]
[426716800,1782759046000,-7519.18447541,0.00029222,2]
[426717464,1782759219000,841.1442935,0.000107,2]
[426717463,1782759219000,79.42785325,0.000107,2]
[426717462,1782759219000,920.57214675,0.000107,2]
[426717465,1782759264000,-9821.04774135,0.0002,2]
[426717466,1782759392000,861.23387982,0.000158,2]
[426717468,1782759434000,17.71837883,0.0002,2]
[426717469,1782759438000,158.8557065,0.00013,2]
[426717470,1782759438000,409.05063772,0.00013,2]
[426717473,1782759440000,1000.0,0.00015,2]
[426717472,1782759440000,1000.0,0.00015,2]
[426717471,1782759440000,590.94936228,0.00015,2]
[426717476,1782759447000,441.9952798,0.0001,2]
[426717475,1782759447000,11160.7021761,7.6e-05,2]
[426717477,1782759448000,7998.33403079,0.00026,30]
[426717479,1782759454000,-1990.10863358,0.00015,2]
[426717495,1782759672000,-3197.33318636,0.00015682,2]
[426717496,1782759689000,-500.0,0.0001584,2]
[426717498,1782759706000,-219.69710813,0.00016,2]
[426717499,1782759723000,-5780.30289187,0.0002,2]
[426717501,1782759739000,-219.69710813,0.0002,2]
[426717507,1782759756000,-310.9493373,0.0002,2]
[426717529,1782759980000,160.0,0.00029306,30]
[426717559,1782760232000,-55.81556918,0.0002,2]
[426717558,1782760232000,-377.64254089,0.0002,2]
[426717668,1782760238000,-583.50556956,0.00029214,2]
[426717678,1782760238000,-583.50556956,0.00029214,2]
[426717664,1782760238000,-583.50556956,0.00029214,2]
[426717673,1782760238000,-583.50556956,0.00029214,2]
[426717674,1782760238000,-583.50556956,0.00029214,2]
[426717676,1782760238000,-583.50556956,0.00029214,2]
[426717680,1782760238000,-583.50556956,0.00029214,2]
[426717688,1782760238000,-156.56312854,0.00029297,2]
[426717686,1782760238000,-168.20601932,0.00029297,2]
[426717682,1782760238000,-184.50209964,0.00029215,2]
[426717684,1782760238000,-418.31227315,0.00029215,2]
[426717694,1782760238000,-500.0,0.00029314,2]
[426717690,1782760238000,-151.0,0.0002931,2]
[426717692,1782760238000,-151.0,0.0002931,2]
[426717666,1782760238000,-583.50556956,0.00029214,2]
[426717660,1782760238000,-583.50556956,0.00029214,2]
[426717633,1782760238000,-1000.0,0.0002,2]
[426717658,1782760238000,-583.50556956,0.00029214,2]
[426717629,1782760238000,-32.25887385,0.0002,2]
[426717631,1782760238000,-206.02701558,0.0002,2]
[426717700,1782760238000,-2173.66101496,0.00029315,2]
[426717626,1782760238000,-368.54118068,0.0002,2]
[426717635,1782760238000,-162.50108705,0.0002,2]
[426717638,1782760238000,-160.0,0.00027842,2]
[426717648,1782760238000,-186.0,0.0002844,2]
[426717641,1782760238000,-200.0,0.00027933,2]
[426717643,1782760238000,-152.0,0.00028,2]
[426717645,1782760238000,-380.0,0.00028002,2]
[426717637,1782760238000,-157.0,0.00027,7]
[426717650,1782760238000,-157.42753514,0.00029,2]
[426717656,1782760238000,-202.95696042,0.00029214,2]
[426717654,1782760238000,-17461.2043504,0.00029178,2]
[426717652,1782760238000,-173.18,0.00029028,15]
[426717662,1782760238000,-583.50556956,0.00029214,2]
[426717698,1782760238000,-515.19170909,0.00029314,7]
[426717671,1782760238000,-583.50556956,0.00029214,2]
[426717710,1782760238000,-512.91506614,0.00029315,7]
[426717741,1782760238000,-500.0,0.00029315,7]
[426717747,1782760238000,-500.0,0.00029315,7]
[426717743,1782760238000,-500.0,0.00029315,7]
[426717749,1782760238000,-534.21180267,0.00029315,7]
[426717745,1782760238000,-500.0,0.00029315,7]
[426717760,1782760238000,-500.0,0.00029315,7]
[426717752,1782760238000,-500.0,0.00029315,7]
[426717756,1782760238000,-500.0,0.00029315,7]
[426717754,1782760238000,-500.0,0.00029315,7]
[426717751,1782760238000,-500.0,0.00029315,7]
[426717762,1782760238000,-500.0,0.00029315,7]
[426717764,1782760238000,-500.0,0.00029315,7]
[426717766,1782760238000,-500.0,0.00029315,7]
[426717767,1782760238000,-500.0,0.00029315,7]
[426717702,1782760238000,-618.57,0.00029315,2]
[426717739,1782760238000,-322.77479374,0.00029315,7]
[426717720,1782760238000,-500.0,0.00029315,7]
[426717758,1782760238000,-500.0,0.00029315,7]
[426717722,1782760238000,-500.0,0.00029315,7]
[426717718,1782760238000,-500.0,0.00029315,7]
[426717704,1782760238000,-301.809362,0.00029315,10]
[426717712,1782760238000,-500.0,0.00029315,7]
[426717695,1782760238000,-500.0,0.00029314,2]
[426717706,1782760238000,-482.40525529,0.00029315,2]
[426717714,1782760238000,-500.0,0.00029315,7]
[426717726,1782760238000,-500.0,0.00029315,7]
[426717708,1782760238000,-500.0,0.00029315,7]
[426717728,1782760238000,-500.0,0.00029315,7]
[426717732,1782760238000,-500.0,0.00029315,7]
[426717733,1782760238000,-388.73723897,0.00029315,7]
[426717730,1782760238000,-500.0,0.00029315,2]
[426717735,1782760238000,-500.0,0.00029315,7]
[426717737,1782760238000,-500.0,0.00029315,7]
[426717724,1782760238000,-500.0,0.00029315,7]
[426717716,1782760238000,-500.0,0.00029315,7]
[426717866,1782760239000,-557.0731282,0.00029315,7]
[426717852,1782760239000,-500.0,0.00029315,7]
[426717858,1782760239000,-500.0,0.00029315,7]
[426717856,1782760239000,-500.0,0.00029315,7]
[426717859,1782760239000,-500.0,0.00029315,7]
[426717849,1782760239000,-500.0,0.00029315,7]
[426717847,1782760239000,-500.0,0.00029315,7]
[426717843,1782760239000,-395.12,0.00029315,7]
[426717841,1782760239000,-500.0,0.00029315,7]
[426717845,1782760239000,-530.95671168,0.00029315,7]
[426717839,1782760239000,-500.0,0.00029315,7]
[426717854,1782760239000,-500.0,0.00029315,7]
[426717864,1782760239000,-500.0,0.00029315,7]
[426717880,1782760239000,-212.58,0.00029315,7]
[426717904,1782760239000,-500.0,0.00029315,7]
[426717874,1782760239000,-500.0,0.00029315,7]
[426717862,1782760239000,-500.0,0.00029315,7]
[426717872,1782760239000,-445.76,0.00029315,7]
[426717876,1782760239000,-500.0,0.00029315,7]
[426717878,1782760239000,-500.0,0.00029315,7]
[426717882,1782760239000,-540.75783646,0.00029315,7]
[426717884,1782760239000,-259.30481017,0.00029315,7]
[426717886,1782760239000,-490.74797264,0.00029315,7]
[426717900,1782760239000,-500.0,0.00029315,7]
[426717902,1782760239000,-500.0,0.00029315,7]
[426717837,1782760239000,-500.0,0.00029315,7]
[426717870,1782760239000,-500.0,0.00029315,7]
[426717835,1782760239000,-500.0,0.00029315,7]
[426717807,1782760239000,-500.0,0.00029315,7]
[426717833,1782760239000,-551.57894845,0.00029315,7]
[426717769,1782760239000,-500.0,0.00029315,7]
[426717772,1782760239000,-500.0,0.00029315,7]
[426717775,1782760239000,-567.91031265,0.00029315,7]
[426717781,1782760239000,-500.0,0.00029315,7]
[426717783,1782760239000,-500.0,0.00029315,7]
[426717779,1782760239000,-151.0,0.00029315,7]
[426717785,1782760239000,-500.0,0.00029315,7]
[426717777,1782760239000,-500.0,0.00029315,7]
[426717787,1782760239000,-500.0,0.00029315,7]
[426717789,1782760239000,-500.0,0.00029315,7]
[426717805,1782760239000,-513.04608556,0.00029315,7]
[426717815,1782760239000,-500.0,0.00029315,7]
[426717791,1782760239000,-500.0,0.00029315,7]
[426717809,1782760239000,-500.0,0.00029315,7]
[426717813,1782760239000,-500.0,0.00029315,7]
[426717793,1782760239000,-500.0,0.00029315,7]
[426717811,1782760239000,-500.0,0.00029315,7]
[426717795,1782760239000,-500.0,0.00029315,7]
[426717801,1782760239000,-523.88283038,0.00029315,7]
[426717797,1782760239000,-500.0,0.00029315,7]
[426717799,1782760239000,-500.0,0.00029315,7]
[426717803,1782760239000,-1000.0,0.00029315,2]
[426717817,1782760239000,-500.0,0.00029315,7]
[426717823,1782760239000,-500.0,0.00029315,7]
[426717821,1782760239000,-500.0,0.00029315,7]
[426717819,1782760239000,-500.0,0.00029315,7]
[426717829,1782760239000,-500.0,0.00029315,7]
[426717831,1782760239000,-500.0,0.00029315,7]
[426717906,1782760239000,-500.0,0.00029315,7]
[426717868,1782760239000,-500.0,0.00029315,7]
[426717910,1782760239000,-500.0,0.00029315,7]
[426717958,1782760239000,-500.0,0.00029315,7]
[426717964,1782760239000,-500.0,0.00029315,7]
[426717966,1782760239000,-500.0,0.00029315,7]
[426717972,1782760239000,-500.0,0.00029315,7]
[426717970,1782760239000,-500.0,0.00029315,7]
[426717968,1782760239000,-500.0,0.00029315,7]
[426717974,1782760239000,-597.68435943,0.00029315,7]
[426717982,1782760239000,-685.602631,0.00029315,7]
[426717980,1782760239000,-685.602631,0.00029315,7]
[426717984,1782760239000,-685.602631,0.00029315,7]
[426717986,1782760239000,-685.602631,0.00029315,7]
[426717976,1782760239000,-685.602631,0.00029315,7]
[426717990,1782760239000,-685.602631,0.00029315,7]
[426717988,1782760239000,-500.0,0.00029315,7]
[426717992,1782760239000,-685.602631,0.00029315,7]
[426718002,1782760239000,-685.602631,0.00029315,7]
[426717994,1782760239000,-685.602631,0.00029315,7]
[426718009,1782760239000,-685.602631,0.00029315,7]
[426718007,1782760239000,-685.602631,0.00029315,7]
[426718005,1782760239000,-685.602631,0.00029315,7]
[426718003,1782760239000,-500.0,0.00029315,7]
[426717996,1782760239000,-685.602631,0.00029315,7]
[426718001,1782760239000,-685.602631,0.00029315,7]
[426717999,1782760239000,-685.602631,0.00029315,7]
[426718000,1782760239000,-685.602631,0.00029315,7]
[426717998,1782760239000,-685.602631,0.00029315,7]
[426717908,1782760239000,-500.0,0.00029315,7]
[426717962,1782760239000,-500.0,0.00029315,7]
[426717960,1782760239000,-500.0,0.00029315,2]
[426717978,1782760239000,-685.602631,0.00029315,7]
[426717952,1782760239000,-500.0,0.00029315,7]
[426717954,1782760239000,-1000.0,0.00029315,2]
[426717890,1782760239000,-646.32771378,0.00029315,7]
[426717894,1782760239000,-151.0,0.00029315,2]
[426717898,1782760239000,-500.0,0.00029315,7]
[426717896,1782760239000,-500.0,0.00029315,7]
[426717892,1782760239000,-151.0,0.00029315,2]
[426717912,1782760239000,-500.0,0.00029315,7]
[426717888,1782760239000,-500.0,0.00029315,7]
[426717917,1782760239000,-500.0,0.00029315,7]
[426717914,1782760239000,-500.0,0.00029315,7]
[426717919,1782760239000,-500.0,0.00029315,7]
[426717923,1782760239000,-500.0,0.00029315,7]
[426717934,1782760239000,-500.0,0.00029315,7]
[426717921,1782760239000,-500.0,0.00029315,7]
[426717916,1782760239000,-500.0,0.00029315,7]
[426717956,1782760239000,-500.0,0.00029315,7]
[426717926,1782760239000,-500.0,0.00029315,7]
[426717950,1782760239000,-500.0,0.00029315,7]
[426717940,1782760239000,-651.4935,0.00029315,7]
[426717946,1782760239000,-500.0,0.00029315,7]
[426717948,1782760239000,-500.0,0.00029315,7]
[426717942,1782760239000,-500.0,0.00029315,7]
[426717944,1782760239000,-500.0,0.00029315,7]
[426717936,1782760239000,-151.0,0.00029315,7]
[426717930,1782760239000,-500.0,0.00029315,7]
[426717932,1782760239000,-500.0,0.00029315,7]
[426717928,1782760239000,-232.13679962,0.00029315,7]
[426717938,1782760239000,-151.0,0.00029315,7]
[426718097,1782760240000,-500.0,0.00029315,7]
[426718086,1782760240000,-152.228476,0.00029315,7]
[426718101,1782760240000,-500.0,0.00029315,7]
[426718095,1782760240000,-500.0,0.00029315,7]
[426718091,1782760240000,-500.0,0.00029315,7]
[426718093,1782760240000,-500.0,0.00029315,7]
[426718073,1782760240000,-176.040744,0.00029315,7]
[426718080,1782760240000,-500.0,0.00029315,7]
[426718074,1782760240000,-176.040744,0.00029315,7]
[426718082,1782760240000,-500.0,0.00029315,7]
[426718078,1782760240000,-176.04074,0.00029315,7]
[426718088,1782760240000,-500.0,0.00029315,7]
[426718076,1782760240000,-176.040744,0.00029315,7]
[426718089,1782760240000,-500.0,0.00029315,7]
[426718122,1782760240000,-500.0,0.00029315,7]
[426718099,1782760240000,-500.0,0.00029315,7]
[426718106,1782760240000,-500.0,0.00029315,7]
[426718105,1782760240000,-500.0,0.00029315,2]
[426718103,1782760240000,-563.58133329,0.00029315,7]
[426718108,1782760240000,-500.0,0.00029315,7]
[426718112,1782760240000,-500.0,0.00029315,7]
[426718110,1782760240000,-500.0,0.00029315,7]
[426718116,1782760240000,-500.0,0.00029315,7]
[426718114,1782760240000,-500.0,0.00029315,7]
[426718118,1782760240000,-500.0,0.00029315,7]
[426718120,1782760240000,-500.0,0.00029315,7]
[426718124,1782760240000,-500.0,0.00029315,7]
[426718071,1782760240000,-176.040744,0.00029315,7]
[426718084,1782760240000,-500.0,0.00029315,7]
[426718069,1782760240000,-176.040744,0.00029315,7]
[426718011,1782760240000,-685.602631,0.00029315,7]
[426718063,1782760240000,-176.040744,0.00029315,7]
[426718126,1782760240000,-500.0,0.00029315,7]
[426718013,1782760240000,-685.602636,0.00029315,7]
[426718014,1782760240000,-500.0,0.00029315,7]
[426718028,1782760240000,-176.040744,0.00029315,7]
[426718020,1782760240000,-500.0,0.00029315,7]
[426718022,1782760240000,-500.0,0.00029315,7]
[426718018,1782760240000,-500.0,0.00029315,7]
[426718031,1782760240000,-176.040744,0.00029315,7]
[426718029,1782760240000,-176.040744,0.00029315,7]
[426718016,1782760240000,-500.0,0.00029315,7]
[426718024,1782760240000,-176.040744,0.00029315,7]
[426718026,1782760240000,-176.040744,0.00029315,7]
[426718039,1782760240000,-176.040744,0.00029315,7]
[426718065,1782760240000,-500.0,0.00029315,7]
[426718054,1782760240000,-500.0,0.00029315,7]
[426718038,1782760240000,-176.040744,0.00029315,7]
[426718045,1782760240000,-176.040744,0.00029315,7]
[426718035,1782760240000,-500.0,0.00029315,7]
[426718048,1782760240000,-500.0,0.00029315,7]
[426718041,1782760240000,-500.0,0.00029315,7]
[426718050,1782760240000,-176.040744,0.00029315,7]
[426718043,1782760240000,-500.0,0.00029315,7]
[426718052,1782760240000,-176.040744,0.00029315,7]
[426718056,1782760240000,-500.0,0.00029315,7]
[426718059,1782760240000,-500.0,0.00029315,7]
[426718061,1782760240000,-176.040744,0.00029315,7]
[426718067,1782760240000,-176.040744,0.00029315,7]
[426718058,1782760240000,-176.040744,0.00029315,7]
[426718047,1782760240000,-500.0,0.00029315,7]
[426718130,1782760240000,-509.80907649,0.00029315,7]
[426718128,1782760240000,-500.0,0.00029315,7]
[426718134,1782760240000,-500.0,0.00029315,7]
[426718206,1782760240000,-500.0,0.00029315,7]
[426718193,1782760240000,-500.0,0.00029315,7]
[426718204,1782760240000,-500.0,0.00029315,7]
[426718208,1782760240000,-151.0,0.00029315,7]
[426718216,1782760240000,-270.659855,0.00029315,7]
[426718214,1782760240000,-500.0,0.00029315,2]
[426718220,1782760240000,-500.0,0.00029315,7]
[426718222,1782760240000,-598.54,0.00029315,7]
[426718223,1782760240000,-500.0,0.00029315,7]
[426718210,1782760240000,-151.0,0.00029315,7]
[426718229,1782760240000,-500.0,0.00029315,7]
[426718218,1782760240000,-500.0,0.00029315,7]
[426718225,1782760240000,-500.0,0.00029315,7]
[426718212,1782760240000,-151.0,0.00029315,7]
[426718227,1782760240000,-500.0,0.00029315,7]
[426718231,1782760240000,-194.42,0.00029315,7]
[426718233,1782760240000,-500.0,0.00029315,7]
[426718237,1782760240000,-500.0,0.00029315,7]
[426718235,1782760240000,-500.0,0.00029315,7]
[426718241,1782760240000,-500.0,0.00029315,7]
[426718245,1782760240000,-500.0,0.00029315,7]
[426718243,1782760240000,-500.0,0.00029315,7]
[426718239,1782760240000,-500.0,0.00029315,7]
[426718256,1782760240000,-500.0,0.00029315,7]
[426718246,1782760240000,-500.0,0.00029315,7]
[426718250,1782760240000,-500.0,0.00029315,7]
[426718252,1782760240000,-500.0,0.00029315,7]
[426718248,1782760240000,-500.0,0.00029315,7]
[426718132,1782760240000,-535.9,0.00029315,7]
[426718187,1782760240000,-500.0,0.00029315,7]
[426718191,1782760240000,-500.0,0.00029315,7]
[426718254,1782760240000,-500.0,0.00029315,7]
[426718185,1782760240000,-500.0,0.00029315,7]
[426718147,1782760240000,-500.0,0.00029315,7]
[426718150,1782760240000,-500.0,0.00029315,7]
[426718135,1782760240000,-500.0,0.00029315,7]